Cogmind - Beta 13 @@@ ROGUE MODE // 2024.04.30 @ 00:33:09 Player: Some Pennies Result: Destroyed by G-47 Trooper with Particle Gun Performance ------------- Evolutions (0) 0 Regions Visited (1) 200 Robots Destroyed (13) 65 Value Destroyed (280) 280 Prototype IDs (0) 0 Alien Tech Used (0) 0 Bonus (0) 0 TOTAL SCORE: 545 Bonus ------- None Cogmind --------- Core Integrity 0/250 Matter 300/300 Energy 87/100 System Corruption 0% Temperature Danger (463) Movement Core (1400) Ox27 Location -10/Materials Parts ------- > --- POWER (1) -------- (None) > --- PROPULSION (2) --- (None) > --- UTILITY (2) ------ Huge Storage Unit Core Shielding > --- WEAPON (2) ------- Small Laser > --- INVENTORY (25) --- Ion Engine Light Ion Engine Heat Sink Structural Scanner Seismic Detector Small Laser Grenade Launcher Mining Laser Peak State ------------ > --- POWER ------------ Ion Engine > --- PROPULSION ------- Light Treads Light Treads > --- UTILITY ---------- Huge Storage Unit Improved Terrain Scanner > --- WEAPON ----------- Small Laser Small Laser > --- INVENTORY -------- Ion Engine Ion Engine Light Ion Engine Heat Sink Structural Scanner Seismic Detector Core Shielding Small Laser Grenade Launcher Mining Laser [Rating: 10] Favorites ----------- Power Ion Engine Engine Ion Engine Propulsion Light Treads Treads Light Treads Utility Improved Terrain Scanner Device Improved Terrain Scanner Storage Huge Storage Unit Protection Core Shielding Weapon Small Laser Energy Gun Small Laser Build | -11 -10 ------- Run | Yrd Mat Slots Evolved . | . . Power . | . . Propulsion . | . . Utility . | . . Weapon . | . . Parts Attached 12 | 7 5 Power 2 | 1 1 Engine 2 | 1 1 Core . | . . Reactor . | . . Propulsion 3 | 2 1 Treads 3 | 2 1 Leg . | . . Wheel . | . . Hover . | . . Flight . | . . Utility 5 | 2 3 Device 1 | 1 . Storage 3 | 1 2 Processor . | . . Hackware . | . . Protection 1 | . 1 Artifact . | . . Weapon 2 | 2 . Energy Gun 2 | 2 . Energy Cannon . | . . Ballistic Gun . | . . Ballistic Cannon . | . . Launcher . | . . Special Weapon . | . . Impact Weapon . | . . Slashing Weapon . | . . Piercing Weapon . | . . Special Melee Weapon . | . . Unidentified Prototypes . | . . Parts Lost 5 | . 5 Power 1 | . 1 Propulsion 2 | . 2 Utility 1 | . 1 Weapon 1 | . 1 Highest Loss Streak 5 | . 5 To Critical Strikes . | . . Average Slot Usage (%) 98 | . 98 Engine 13 | . 13 Treads 27 | . 27 Device 13 | . 13 Storage 14 | . 14 Energy Gun 27 | . 27 Naked Turns . | . . Heaviest Build 88 | 13 88 Greatest Support 40 | 40 40 Greatest Overweight (x) 27 | . 27 Average Overweight (x) . | . . Largest Inventory Capacity 25 | 8 25 Average Capacity 16 | 7 19 Most Carried 10 | 5 10 Average Carried 5 | 2 6 Final Capacity 25 | 8 25 Final Carried 8 | 4 8 Class Distribution -------------------- 100% | Mutant Dominant Class ---------------- Mutant | -10/Materials Resources | -11 -10 ----------- Run | Yrd Mat Matter Collected 300 | 270 30 Remotely . | . . Salvage Created 440 | 183 257 Parts 29 | 15 14 Haulers Intercepted . | . . Recyclers Shooed . | . . Parts Field Recycled . | . . Retrieved Matter . | . . Parts Self-Destructed . | . . Prevented . | . . Kills | -11 -10 ------- Run | Yrd Mat Combat Hostiles Destroyed 5 | . 5 Guns 5 | . 5 Classes Destroyed 5 | 3 2 Worker 1 | 1 . Tunneler 4 | 4 . Recycler 1 | 1 . Watcher 2 | . 2 Grunt 5 | . 5 Best Kill Streak 2 | 2 2 Combat Bots Only 2 | . 2 Max Kills in Single Turn 2 | 2 1 Gunslinging . | . . Exploded . | . . Melee . | . . Uniques/NPCs Destroyed . | . . Combat | -11 -10 -------- Run | Yrd Mat Hostile Shots Fired 85 | . 85 Missed 14 | . 14 Damage Taken 937 | . 937 Core 255 | . 255 Absorbed by Shields . | . . Redirected to Shielding 45 | . 45 Core Remaining (%) 100 | 100 . Volleys Fired 51 | 14 37 Largest 2 | 2 2 Hottest 80 | 80 80 Shots Fired 98 | 28 70 Gun 98 | 28 70 Cannon . | . . Launcher . | . . Special . | . . Kinetic . | . . Thermal 98 | 28 70 Explosive . | . . Electromagnetic . | . . Robot Hit Streak 7 | 4 7 Robot Miss Streak 5 | 3 5 Penetration Max . | . . Secondary Targets 1 | . 1 Max Gunslinging Chain 1 | . 1 Shots Hit Robots 57 | 14 43 Core Hits 24 | 7 17 Critical Kills . | . . Critical Parts Destroyed . | . . Critical Strikes . | . . Melee Attacks . | . . Impact . | . . Slashing . | . . Piercing . | . . Sneak Attacks . | . . Combat Hostiles . | . . Follow-up Attacks . | . . Damage Inflicted 681 | 174 507 Guns 645 | 174 471 Cannons . | . . Explosions 36 | . 36 Melee . | . . Ramming . | . . Kinetic . | . . Thermal 681 | 174 507 Explosive . | . . Electromagnetic . | . . Impact . | . . Slashing . | . . Piercing . | . . Highest Corruption . | . . Average Corruption . | . . Corruption Purged . | . . Corruption Blocked . | . . Overload Shots . | . . Overflow Damage . | . . Projectiles . | . . Explosions . | . . Melee . | . . Knockbacks . | . . Impact . | . . Kinetic . | . . Secondary . | . . Self-Inflicted Damage . | . . Shots . | . . Rammed . | . . Targets Rammed . | . . Kicked . | . . Crushed . | . . Highest Temperature 489 | 36 489 Average Temperature 105 | 19 137 Received Heat Transfer 543 | . 543 Effects 1 | . 1 Energy Bleed 1 | . 1 Siege Activations . | . . Robots Corrupted . | . . Combat Hostiles . | . . Parts Fried . | . . Impact Corruptions . | . . Robots Melted . | . . Combat Hostiles . | . . Parts Melted 2 | 1 1 Heat Transferred 1525 | 400 1125 Parts Sabotaged . | . . Parts Stolen . | . . Parts Stripped . | . . Power Chain Reactions . | . . Alert | -11 -10 ------- Run | Yrd Mat Peak Influence 122 | 30 122 Initial 19 | . 19 Average 37 | 14 43 Maximum Alert Level . | . . Low Security (%) 100 | 100 100 Level 1 . | . . Level 2 . | . . Level 3 . | . . Level 4 . | . . Level 5 . | . . High Security . | . . Max Security . | . . Squads Dispatched . | . . Investigation . | . . Extermination . | . . Reinforcement . | . . Assault . | . . Garrison . | . . Intercept . | . . Searches Triggered . | . . Construction Impeded . | . . Haulers Reinforced . | . . Active Scanning Responses . | . . Cargo Convoy Interrupts . | . . Stealth | -11 -10 --------- Run | Yrd Mat Distress Signals 1 | . 1 Communications Jammed . | . . Distress Signals . | . . Times Spotted 13 | . 13 Peak Tracking Total 4 | . 4 Tactical Retreats 1 | . 1 Traps | -11 -10 ------- Run | Yrd Mat Traps Triggered 1 | . 1 Indirectly . | . . Trap Hack Attempts . | . . Triggered . | . . Disarmed . | . . Reprogrammed . | . . Reused . | . . Traps Extracted . | . . Installed . | . . Triggered . | . . Machines | -11 -10 ---------- Run | Yrd Mat Machines Disabled 3 | . 3 Max in Single Turn 3 | . 3 Machines Repaired . | . . Machines Dismantled . | . . Machines Sabotaged . | . . Overloaded Fab Kills . | . . Hacking | -11 -10 --------- Run | Yrd Mat Machines Accessed 5 | . 5 Terminals 5 | . 5 Fabricators . | . . Repair Stations . | . . Recycling Units . | . . Scanalyzers . | . . Garrison Access . | . . Total Hacks 11 | . 11 Successful 3 | . 3 Failed 8 | . 8 Catastrophic . | . . Database Lockouts . | . . Manual 6 | . 6 Terminals 11 | . 11 Fabricators . | . . Repair Stations . | . . Recycling Units . | . . Scanalyzers . | . . Garrison Access . | . . Terminal Hacks 3 | . 3 Robot Analysis 1 | . 1 Locate Traps 2 | . 2 Fabricator Hacks . | . . Repair Station Hacks . | . . Recycling Unit Hacks . | . . Scanalyzer . | . . Garrison Access Hacks . | . . Unauthorized Hacks . | . . Terminals . | . . Fabricators . | . . Repair Stations . | . . Recycling Units . | . . Scanalyzers . | . . Garrison Access . | . . Data Cores Recovered . | . . Used . | . . Hacking Detections 5 | . 5 Full Trace Events 1 | . 1 Feedback Events . | . . Feedback Blocked . | . . Robot Schematics Acquired . | . . Robots Built . | . . Authchips . | . . Time . | . . Total Robot Build Rating . | . . Part Schematics Acquired . | . . Parts Built . | . . Authchips . | . . Time . | . . Total Part Build Rating . | . . Parts Repaired . | . . Time . | . . Parts Recycled . | . . Recycled Matter . | . . Retrieved Matter . | . . Retrieved Components . | . . Parts Scanalyzed . | . . Part Schematics Acquired . | . . Parts Damaged . | . . Bothacking | -11 -10 ------------ Run | Yrd Mat Used RIF Installer . | . . Robots Hacked . | . . Non-combat . | . . Combat . | . . Robot Hacks Applied . | . . Relay Couplers Released . | . . Fabnet Peak Effective % . | . . Robots Rewired . | . . Allies Hacked . | . . Hacks Repelled . | . . Allies | -11 -10 -------- Run | Yrd Mat Total Allies . | . . Largest Group . | . . Highest-Rated Group . | . . Highest-Rated Ally . | . . Total Orders . | . . Ally Attacks . | . . Total Damage . | . . Kills . | . . Allies Corrupted . | . . Allies Melted . | . . Intel | -11 -10 ------- Run | Yrd Mat Robot Analysis Total 1 | . 1 Derelict Logs Recovered . | . . Drone Launches . | . . Drone Recoveries . | . . Exploration | -11 -10 ------------- Run | Yrd Mat Turns Passed 1369 | 308 1061 Spaces Moved 583 | 158 425 Core 8 | 7 1 Treads 575 | 151 424 Legs . | . . Wheels . | . . Hover . | . . Flight . | . . Fastest Speed 50 | 50 160 Average Speed 203 | 155 222 Slowest Speed 1400 | 160 1400 Overloaded Moves . | . . Propulsion Burnouts . | . . Robots Hopped . | . . Cave-ins Triggered . | . . Exploration Rate (%) 41 | 9 74 Regions Visited 1 Branch Regions . Pre-discovered Areas . | . . Known Exits Taken . | . . Unknown Exits Taken 1 | 1 . Scrap Searched . | . . Spaces Dug . | . . Terrain Destroyed 6 | . 6 Melee . | . . Projectile . | . . AOE 6 | . 6 Terrain Rammed . | . . Walls Destroyed . | . . Machines Disabled . | . . Actions | -11 -10 --------- Run | Yrd Mat Total 679 | 195 484 Wait 5 | . 5 Move 582 | 157 425 Hop . | . . Pick Up 23 | 14 9 Fast Attach . | . . Attach 9 | 7 2 Detach . | . . Swap 3 | . 3 Drop 6 | 3 3 Fire 51 | 14 37 Melee . | . . Ram . | . . Kick . | . . Crush . | . . Escape Stasis . | . . Rewire . | . . Trap . | . . Miscellaneous . | . . Route ------- -11/Scrapyard -10/Materials (discovered 2 exits: [*Mat] / [*Min]) History --------- Turn | Location | Event 16 | -11/Scrapyard | Discovered new exit (range 16) 309 | -11/Scrapyard | Entered Materials 310 | -10/Materials | Build established: Mutant 608 | -10/Materials | Discovered new exit (range 3) 935 | -10/Materials | Discovered new exit (range 7) 1358 | -10/Materials | Core integrity fell below 50% 1366 | -10/Materials | Core integrity fell below 20% 1370 | -10/Materials | Destroyed by G-47 Trooper with Particle Gun Last Messages --------------- 01300_ Dropped Ion Engine. 01329_ K-01 Serf destroyed. 01341_ Heat Sink melted. 01341_ G-34 Mercenary destroyed. 01341_ Switching to secondary target: G-34 Mercenary. 01342_ Lgt. Treads destroyed. 01343_ Imp. Terrain Scanner destroyed. 01348_ Critical hit (Burn: +37). 01349_ Lgt. Treads destroyed. 01354_ Ion Engine destroyed. 01359_ Sml. Laser destroyed. 01360_ K-01 Serf collects debris. 01363_ G-47 Trooper heat damages Imp. Heat Sink. 01364_ K-01 Serf collects debris. 01365_ G-47 Trooper heat damages Aluminum Leg. 01366_ G-47 Trooper heat short circuits Particle Gun. 01368_ Overheating: Energy bleed (-22). 01368_ K-01 Serf collects debris. Map ----- +----------------------------------------------------+ | | | | | | | | | | | | | | | | | | | | | | | | | | | | | | | ????????????????????????????????????#????????????? | | ??????????????????#????????#?????????????????????? | | ??????????? ????#??????????#??????????#??????????? | | ?????????????????????????????????????????????????? | | ??????????????????????????#??#??????##??#????????? | | ???????????????#??? ???######?????? #???#?#??????? | | ???????????????????????+ #???? #????????????? | | ???????????????????????#gg #???? ?????????#???? | | ?????????????????#???? # #####+####???##??????? | | ????????????? ??#??????# #??????????#? | | ????????????????#???#+## @tk [* #????????#?#? | | ????????????? %= g!==%[ #???????????? | | ????????????# #####+##### %=#### #???????????? | | ?????????????????? ?????# ##?# #???????????? | | ????????????????## "???? ?# #??# #????#??????? | | ?????????????????#""??????# ##?# #??????##???? | | ?????????????????#????????# #?## #???#???????? | | ??????????????????????????# #??# #??????? ???# | | ??????????????????????? # #??# #???????????? | | ????????????? ????????? ??+ #?## #??#??##?? ?? | | ???????##?????????????????# #??# #?#???#?? ??? | | ???????????????????????? ?# #??# #????#??????? | | ?#??????????? ???????#???## #??# #?#???#?????? | | ???????????? ? ?????? ??? #??# ##???????? ?? | | ???????????????? ???? ???? #??# #???????????? | | ??????#??????? ??????????? ?#?# #????#??????? | | #############?????????????######## ######## #? | | # ! #?#?#??#########??# #? | | # = ##??????# #??# #? | | # ##???#??# #??# #? | | # """ """ #?###???# #??# ###############? | | ??""" """ ###???#?# """ ##?# #?#?#?????##???# | | # """ """ #?#?????# """ #??# #????#???????#?? | | # ######### """ #??# #######??#?????? | | ##########+## ##+######## # ######???? | +----------------------------------------------------+ Best States ------------- Heat Dissipation 25 Energy Generation 10 Energy Capacity 250 Matter Stores 300 Matter Capacity 300 Sight Range 16 Terrain Scan Range 16 Terrain Scan Density 10 Core Shielding 20 Evasion (%) 40 Recoil Reduction 2 Item Schematics ----------------- None Robot Schematics ------------------ None Fabricated ------------ Nothing Alien Tech Used ----------------- None Achievements -------------- None Challenges ------------ None Game ------ Seed ExplosiveHeavyWarhead Manual? 0 Play Time 00:08:29 Cumulative 30.9 hours Start 2024.04.30 @ 00:26:33 End 2024.04.30 @ 00:33:09 Sessions 1 Manual Loads 0 Difficulty Rogue Special Mode None Game No. 39 Rogue 34 Adventurer 5 Explorer 0 Win Type - Total 0 Types 0/0/0/0/0/0/0/0/0 Lore% 25 Gallery% 27 Achievement% 23 Wizard Run 0 Options --------- Layout 2 ASCII 0 Keyboard 0 Movement Mouse Keybinds 0 Fullscreen 2 Font 24/Smallcaps Map View 50x44 Zoom Use 0% Tactical HUD 1 Map Filters NONE Filters NONE Steam 1 RUN: 56e3a7db-82b1-4bb8-96a9-3f67d8be387e